bitfinex-derivatives/quotes_ETHF0:USTF0_20250210
["timestamp","ask_amount","ask_price","bid_price","bid_amount"]
[1739192540226,3.2078,2640.4,2639.7,0.00567999]
[1739192540227,0.56497999,2640.3,2639.7,0.00567999]
[1739192540531,3.78011998,2640.2,2639.7,0.00567999]
[1739192542323,0.6057,2640.1,2639.7,0.00567999]
[1739192542636,3.8135,2640.1,2639.7,0.00567999]
[1739192544734,0.6057,2640.1,2639.7,0.00567999]
[1739192545230,0.56497999,2640.3,2639.8,2.02996555]
[1739192545428,0.00567999,2640.3,2640.1,5.23776555]
[1739192545635,0.00567999,2640.3,2640.2,1.1623]
[1739192546031,0.00567999,2640.3,2640.2,41.9623]
[1739192546227,0.00567999,2640.3,2640.2,40.8]
[1739192546427,0.00567999,2640.3,2639.8,2.63776555]
[1739192546829,2.02996555,2640.2,2639.7,0.00567999]
[1739192547131,5.23776555,2639.9,2639.1,3.2078]
[1739192547431,5.23776555,2639.6,2639.0,0.6078]
[1739192547732,3.2078,2639.2,2638.8,3.7623]
[1739192547931,3.2078,2639.2,2638.8,3.2078]
[1739192548430,3.2078,2639.2,2638.8,44.0078]
[1739192549936,3.2078,2639.5,2638.8,44.0078]
[1739192550335,4.2734481,2639.4,2638.8,44.0078]
[1739192551137,3.2078,2639.2,2638.8,3.2078]
[1739192551331,0.6143,2639.1,2638.8,3.2078]
[1739192551532,5.5569495,2639.1,2638.8,3.2078]
[1739192552539,3.2078,2638.9,2638.7,0.00567999]
[1739192552939,1.1894,2639.1,2638.7,0.00567999]
[1739192554445,0.6143,2639.1,2638.7,0.00567999]
[1739192557945,3.811,2639.5,2638.7,3.21347999]
[1739192558145,0.5565,2639.6,2639.0,3.2078]
[1739192558338,0.5565,2639.6,2639.3,3.2078]
[1739192558538,0.5565,2639.6,2639.1,1.1762]
[1739192560233,4.31931259,2639.5,2639.1,1.1762]
[1739192560743,0.5565,2639.6,2639.1,1.1762]
[1739192561643,3.2078,2639.9,2639.1,1.1762]
[1739192561842,3.2078,2639.9,2639.3,3.2078]
[1739192563243,3.2078,2639.9,2639.5,2.36615411]
[1739192563746,3.2078,2639.9,2639.6,0.5848]
[1739192564339,3.2078,2639.9,2639.7,40.8]
[1739192566145,3.2078,2639.9,2639.7,0.6132]
[1739192566347,3.2078,2639.9,2639.8,0.5705]
[1739192566545,0.00567999,2640.3,2639.8,6.14445411]
[1739192569941,0.00567999,2640.3,2639.8,0.5705]
[1739192570146,4.18784704,2640.2,2639.7,0.6132]
[1739192571250,4.18784704,2640.2,2639.6,0.5848]
[1739192571446,3.2078,2640.0,2639.4,0.5776]
[1739192571752,4.60531561,2639.9,2639.4,0.5776]
[1739192571949,5.17021561,2639.9,2639.4,0.5776]
[1739192572551,1.133,2639.9,2639.5,2.03241624]
[1739192575859,0.5681,2639.9,2639.5,2.03241624]
[1739192576552,0.5681,2639.9,2639.6,3.2078]
[1739192576747,3.21347999,2640.3,2639.8,2.03241624]
[1739192576953,3.76867999,2640.3,2639.8,2.03241624]
[1739192577359,3.76867999,2640.3,2639.8,2.64491624]
[1739192577660,0.00567999,2640.3,2639.8,2.64491624]
[1739192577853,0.00567999,2640.3,2639.9,44.0078]
[1739192578053,0.00567999,2640.3,2640.0,0.604]
[1739192578455,0.00567999,2640.3,2640.1,2.03241624]
[1739192578957,0.00567999,2640.3,2640.2,0.5634]
[1739192582059,0.00567999,2640.3,2640.2,3.7712]
[1739192583062,0.00567999,2640.3,2640.2,50.5712]
[1739192583563,0.00567999,2640.3,2640.2,44.5712]
[1739192584169,0.5558,2641.0,2640.2,50.5712]
[1739192584369,0.5595,2641.2,2640.9,2.03241624]
[1739192585969,0.5595,2641.2,2640.8,0.56287999]
[1739192587372,0.5595,2641.2,2640.9,2.03241624]
[1739192588472,0.61817999,2641.3,2640.9,2.03241624]
[1739192588668,0.61817999,2641.3,2641.0,1.1375]
[1739192589371,0.61817999,2641.3,2640.8,0.56287999]
[1739192590768,3.2078,2641.1,2640.8,0.00567999]
[1739192591079,0.5626,2641.0,2640.8,0.00567999]
[1739192591270,5.31198246,2641.0,2640.8,0.00567999]
[1739192591674,5.69088246,2641.0,2640.8,0.00567999]
[1739192592480,2.03241624,2640.9,2640.1,44.0078]
[1739192592683,3.2078,2640.6,2640.1,3.2078]
[1739192592981,5.45029666,2640.5,2640.1,3.2078]
[1739192594083,0.5626,2640.5,2640.1,3.2078]
[1739192594283,0.5626,2640.5,2640.2,0.5573]
[1739192595281,3.2078,2640.9,2640.3,2.03241624]
[1739192595683,1.1525,2641.1,2640.6,2.03241624]
[1739192596284,1.1525,2641.1,2640.7,1.1514]
[1739192596583,1.1525,2641.1,2640.7,1.713]
[1739192596885,3.2078,2641.2,2640.9,2.03241624]
[1739192598684,3.2078,2641.2,2641.0,40.8]
[1739192599590,0.5628,2641.1,2641.0,40.8]
[1739192602879,3.2078,2641.2,2641.0,40.8]
[1739192603790,3.2078,2641.2,2640.9,2.03241624]
[1739192604289,3.2078,2641.2,2640.9,42.83241624]
[1739192605989,0.00567999,2641.3,2640.9,42.83241624]
[1739192606187,0.00567999,2641.3,2641.2,2.03241624]
[1739192606380,2.914,2641.9,2641.2,2.03241624]
[1739192606585,1.2019,2642.2,2641.7,2.03241624]
[1739192606884,4.38704141,2642.1,2641.7,2.03241624]
[1739192607284,1.2019,2642.2,2641.8,0.5743]
[1739192607485,1.2019,2642.2,2642.0,2.03241624]
[1739192608092,0.00567999,2642.3,2642.0,2.03241624]
[1739192609291,0.00567999,2642.3,2642.0,5.24021624]
[1739192609696,0.00567999,2642.3,2642.1,40.8]
[1739192612491,0.00567999,2642.3,2642.0,5.24021624]
[1739192619604,0.00567999,2642.3,2642.0,3.2078]
[1739192620495,0.00567999,2642.3,2641.8,41.3743]
[1739192620688,0.00567999,2642.3,2642.0,2.03241624]
[1739192621095,0.00567999,2642.3,2642.0,5.24021624]
[1739192621495,0.00567999,2642.3,2642.1,0.5993]
[1739192622804,0.5563,2643.3,2642.2,2.03241624]
[1739192622998,0.6108,2643.2,2642.9,3.2078]
[1739192623197,0.6108,2643.2,2643.0,2.03241624]
[1739192624700,0.6108,2643.2,2642.8,0.5991]
[1739192625405,0.6108,2643.2,2642.9,40.8]
[1739192627797,0.6108,2643.2,2642.7,2.03241624]
[1739192628199,3.2078,2643.1,2642.7,2.03241624]
[1739192628505,3.2078,2643.1,2642.5,3.8016]
[1739192628506,3.7672,2643.1,2642.5,3.8016]
[1739192629098,3.7672,2643.1,2642.5,0.5938]
[1739192629805,4.13301677,2643.0,2642.4,2.03241624]
[1739192630601,3.7672,2643.1,2642.4,2.03241624]
[1739192631105,3.7672,2643.1,2642.7,2.03241624]
[1739192631106,3.2078,2643.1,2642.7,2.03241624]
[1739192631301,0.6108,2643.2,2642.7,2.03241624]
[1739192632003,7.52992693,2643.1,2642.7,2.03241624]
[1739192632204,7.52992693,2643.1,2642.5,1.6829]
[1739192632708,0.5653,2643.0,2642.5,1.6829]
[1739192632898,7.52992693,2643.1,2642.7,2.03241624]
[1739192633096,0.6108,2643.2,2642.7,2.03241624]
[1739192633297,0.6108,2643.2,2643.0,2.03241624]
[1739192639416,3.21347999,2643.4,2643.1,0.5652]
[1739192639621,3.21347999,2643.4,2643.3,2.03241624]
[1739192640104,0.00567999,2643.4,2643.3,2.03241624]
[1739192640306,3.8058,2644.1,2643.3,4.06483248]
[1739192640507,0.5539,2644.0,2643.7,2.03241624]
[1739192640715,3.2078,2643.8,2643.7,2.03241624]
[1739192640915,4.50223954,2644.0,2643.7,2.03241624]
[1739192641113,0.5539,2644.0,2643.7,2.03241624]
[1739192641618,0.5539,2644.0,2643.4,2.03241624]
[1739192641912,3.2078,2643.7,2643.4,2.03241624]
[1739192642109,3.2078,2643.7,2643.1,3.82549623]
[1739192642309,0.5671,2643.6,2643.1,3.82549623]
[1739192642510,0.5879,2643.5,2643.1,44.62549623]
[1739192643121,0.5879,2643.5,2643.4,2.03241624]
[1739192643418,0.00378666,2644.1,2643.3,7.27263248]
[1739192643711,0.00378666,2644.1,2643.9,2.03241624]
[1739192645414,0.00378666,2644.1,2643.6,2.03241624]
[1739192645712,0.00378666,2644.1,2643.9,2.03241624]
[1739192646015,0.00378666,2644.1,2644.0,0.5687]
[1739192646317,3.7888,2644.6,2644.0,0.5687]
[1739192646616,0.5661,2644.5,2644.3,2.03241624]
[1739192647316,3.2078,2644.6,2644.3,2.03241624]
[1739192648413,3.2078,2644.6,2644.4,40.8]
[1739192648818,0.5997,2644.7,2644.4,40.8]
[1739192649012,3.2078,2645.3,2644.6,5.24021624]
[1739192649213,3.2078,2645.3,2644.9,2.03241624]
[1739192649214,1.2051,2645.2,2644.9,2.03241624]
[1739192649709,3.2078,2645.3,2644.9,2.03241624]
[1739192650311,3.804,2645.6,2645.2,2.03241624]
[1739192650513,3.2078,2645.9,2645.5,2.03241624]
[1739192650713,3.2078,2645.9,2645.6,0.5788]
[1739192650919,3.2078,2645.9,2645.5,2.03241624]
[1739192651215,3.2078,2645.9,2645.1,3.2078]
[1739192651216,4.74615629,2645.8,2645.2,2.03241624]
[1739192651716,0.562,2645.7,2645.2,2.03241624]
[1739192652123,0.6137,2645.8,2645.2,2.03241624]
[1739192652413,1.1757,2645.8,2645.2,2.03241624]
[1739192652616,3.2078,2645.6,2645.2,2.03241624]
[1739192654020,1.1757,2645.8,2645.2,2.03241624]
[1739192654521,3.93583529,2645.7,2645.2,2.03241624]
[1739192654715,0.6137,2645.8,2645.5,2.03241624]
[1739192655318,0.6137,2645.8,2645.5,3.74341624]
[1739192655821,3.2078,2645.6,2644.9,2.03241624]
[1739192656024,3.2078,2645.4,2645.2,2.03241624]
[1739192656923,3.2078,2645.4,2644.9,2.03241624]
[1739192657122,0.5759,2645.3,2644.9,2.03241624]
[1739192657724,1.1708,2645.3,2644.9,2.03241624]
[1739192657924,1.7537,2645.3,2644.9,2.03241624]
[1739192658524,1.7537,2645.3,2644.8,3.2078]
[1739192659328,4.37256206,2645.2,2644.8,3.2078]
[1739192659723,1.1708,2645.3,2644.8,4.3281]
[1739192660230,1.1708,2645.3,2644.8,3.2078]
[1739192667833,0.5759,2645.3,2644.8,3.2078]
[1739192668938,0.5759,2645.3,2645.0,2.35511895]
[1739192669637,3.2078,2645.4,2645.0,2.35511895]
[1739192669832,3.2078,2645.4,2645.3,2.35511895]
[1739192672340,3.2078,2645.4,2645.2,1.704]
[1739192673229,0.584,2645.8,2645.2,1.704]
[1739192673635,0.584,2645.8,2645.3,5.56291895]
[1739192676033,3.2078,2645.9,2645.3,5.56291895]
[1739192676429,3.2078,2645.9,2645.6,2.35511895]
[1739192676634,3.2078,2645.9,2645.7,42.6072]
[1739192677234,0.6118,2646.1,2645.7,42.6072]
[1739192678643,0.6118,2646.1,2645.3,5.56291895]
[1739192678842,0.6118,2646.1,2645.4,1.7272]
[1739192679141,0.6118,2646.1,2645.4,42.5272]
[1739192679543,0.6118,2646.1,2645.4,1.7272]
[1739192679739,0.6118,2646.1,2645.5,2.02293269]
[1739192680040,0.6118,2646.1,2645.8,2.02293269]
[1739192680742,0.6118,2646.1,2645.5,42.82293269]
[1739192681341,3.2078,2645.9,2645.5,2.02293269]
[1739192681733,3.2078,2645.9,2644.8,1.06157568]
[1739192681734,3.2078,2645.6,2644.9,2.02293269]
[1739192681939,3.2078,2645.4,2644.9,3.20543269]
[1739192682135,3.5867,2645.4,2644.9,3.20543269]
[1739192682539,0.5542,2645.3,2645.0,40.8]
[1739192682745,3.2078,2645.1,2644.6,2.02293269]
[1739192688443,3.2078,2645.1,2644.8,40.8]
[1739192688843,3.2078,2645.1,2644.9,2.02293269]
[1739192689042,0.5542,2645.3,2644.9,2.02293269]
[1739192689043,3.7992,2645.5,2644.9,2.62153269]
[1739192689239,4.3778,2645.5,2644.9,2.02293269]
[1739192689441,4.3778,2645.5,2644.8,40.8]
[1739192689646,0.75591,2645.4,2644.8,40.8]
[1739192689852,4.96564547,2645.4,2644.8,40.8]
[1739192690151,4.20971547,2645.4,2644.8,40.8]
[1739192690546,3.2078,2645.2,2644.8,40.8]
[1739192691045,3.2078,2645.2,2644.7,0.00567999]
[1739192691046,0.6068,2645.1,2644.7,0.00567999]
[1739192691448,0.6115,2645.0,2644.7,0.00567999]
[1739192691648,1.1862,2645.0,2644.7,0.00567999]
[1739192702060,3.2078,2644.9,2644.7,0.00567999]
[1739192706056,3.96387,2644.9,2644.7,0.00567999]
[1739192706254,3.96388,2644.9,2644.7,0.00567999]
[1739192707562,3.2078,2644.9,2644.7,0.00567999]
[1739192708062,4.38294721,2644.8,2644.0,0.6125]
[1739192708359,3.2078,2644.2,2643.7,2.02293269]
[1739192708567,1.1699,2644.1,2643.6,3.8055]
[1739192708856,0.5949,2644.1,2643.7,2.02293269]
[1739192709059,0.5811,2644.6,2644.0,2.02293269]
[1739192709262,0.00564385,2644.2,2644.1,0.6116]
[1739192709461,0.00564385,2644.2,2644.1,1.7595]
[1739192710057,3.2078,2644.7,2644.1,7.7595]
[1739192710364,3.2078,2644.7,2644.6,2.02293269]
[1739192711158,3.2078,2644.7,2644.6,40.8]
[1739192711363,3.2078,2644.7,2644.3,5.23073269]
[1739192711563,0.6078,2644.6,2644.3,5.23073269]
[1739192711863,0.6078,2644.6,2644.4,40.8]
[1739192712061,0.6078,2644.6,2644.3,3.2078]
[1739192712261,1.1982,2644.6,2644.1,1.7595]
[1739192712660,3.8012,2645.0,2644.3,2.02293269]
[1739192712863,0.6078,2644.8,2644.3,2.02293269]
[1739192713956,0.5904,2645.1,2644.6,2.02293269]
[1739192714161,1.1982,2645.1,2644.7,1.7295]
[1739192715268,0.6078,2645.1,2644.7,4.9373]
[1739192715857,0.00457028,2645.2,2644.7,4.9373]
[1739192717361,0.00457028,2645.2,2644.9,2.02293269]
[1739192718159,0.00457028,2645.2,2645.1,3.2078]
[1739192718364,0.00457028,2645.2,2645.1,44.0078]
[1739192720460,0.00457028,2645.2,2645.1,40.8]
[1739192721765,0.00457028,2645.2,2644.9,3.72593269]
[1739192722270,0.00457028,2645.2,2645.0,40.8]
[1739192722863,0.00457028,2645.2,2644.9,3.72593269]
[1739192723363,0.00457028,2645.2,2644.9,44.52593269]
[1739192724464,0.00457028,2645.2,2645.1,3.2078]
[1739192725271,3.2078,2645.9,2645.1,9.2078]
[1739192725469,3.2078,2645.9,2645.6,2.02293269]
[1739192731964,3.2078,2645.9,2645.3,2.02293269]
[1739192732272,3.2078,2645.6,2645.2,0.00566915]
[1739192732465,1.1839,2645.5,2645.2,0.00566915]
[1739192733669,3.2078,2645.3,2645.2,0.00566915]
[1739192734068,3.96374,2645.3,2645.2,0.00566915]
[1739192734262,3.96374,2645.3,2644.9,40.8]
[1739192734672,3.5867,2645.3,2644.9,40.8]
[1739192734967,5.60963269,2645.0,2644.2,0.567]
[1739192735274,3.2078,2644.7,2644.3,40.8]
[1739192735571,3.2078,2644.7,2644.3,40.80566915]
[1739192736665,3.2078,2644.4,2644.3,40.80566915]
[1739192736872,3.2078,2644.4,2644.3,0.00566915]
[1739192737969,3.7746,2644.4,2644.3,0.00566915]
[1739192739277,6.55373269,2644.4,2644.3,0.00566915]
[1739192739468,5.79753269,2644.4,2644.3,0.00566915]
[1739192739669,3.7746,2644.4,2644.3,0.00566915]
[1739192740974,0.5619,2644.5,2644.3,0.00566915]
[1739192741277,0.5619,2644.5,2644.4,40.8]
[1739192743473,0.5919,2644.7,2644.4,40.8]
[1739192743672,0.5919,2644.7,2644.4,42.82293269]
[1739192743978,3.21346915,2644.9,2644.4,42.82293269]
[1739192745272,3.21346915,2644.9,2644.7,2.02293269]
[1739192745475,0.00566915,2644.9,2644.7,2.02293269]
[1739192745675,0.00566915,2644.9,2644.8,0.5974]
[1739192748384,0.00566915,2644.9,2644.6,3.2078]
[1739192748882,0.56266915,2644.9,2644.6,3.2078]
[1739192749985,3.2078,2644.7,2644.4,2.02293269]
[1739192750186,0.56266915,2644.9,2644.4,2.02293269]
[1739192751486,0.56266915,2644.9,2644.7,2.02293269]
[1739192751688,0.00566915,2644.9,2644.8,0.613]
[1739192751878,0.00566915,2644.9,2644.8,1.2228]
[1739192752084,0.00566915,2644.9,2644.8,0.613]
[1739192752686,0.00566915,2644.9,2644.7,2.02293269]
[1739192755683,0.00566915,2644.9,2644.8,3.2078]
[1739192755882,0.00566915,2644.9,2644.8,40.8]
[1739192756083,0.00566915,2644.9,2644.8,44.0078]
[1739192760299,0.5597,2645.7,2644.8,50.76387]
[1739192760492,0.5597,2645.7,2645.2,2.02293269]
[1739192760688,0.583,2645.8,2645.2,2.02293269]
[1739192760893,0.583,2645.8,2645.5,2.02293269]
[1739192761398,0.583,2645.8,2645.6,40.8]
[1739192762389,3.2078,2646.0,2645.6,40.8]
[1739192762586,3.2078,2646.0,2645.8,2.02293269]
[1739192765890,1.1773,2646.1,2645.8,2.02293269]
[1739192766597,0.75559,2646.6,2645.8,2.02293269]
[1739192766598,3.2078,2646.6,2645.8,5.23073269]
[1739192766799,1.1235,2646.5,2646.1,5.23073269]
[1739192767396,3.2078,2646.9,2646.4,2.02293269]
[1739192768399,3.2078,2646.9,2646.5,0.5876]
[1739192768891,3.2078,2646.9,2646.7,2.02293269]
[1739192769597,1.1524,2647.0,2646.7,2.02293269]
[1739192771495,1.1524,2647.0,2646.5,0.5876]
[1739192771994,3.9633,2646.9,2646.4,2.02293269]
[1739192772298,3.7984,2646.9,2646.4,2.02293269]
[1739192774193,3.7984,2646.9,2646.1,2.02293269]
[1739192776492,4.1773,2646.9,2646.1,2.02293269]
[1739192776995,3.2078,2646.6,2646.1,2.02293269]
[1739192777188,1.1817,2646.5,2646.1,2.02293269]
[1739192777993,0.5696,2646.5,2646.4,2.02293269]
[1739192778192,0.588,2646.8,2646.4,2.02293269]
[1739192778499,0.588,2646.8,2646.5,0.6078]
[1739192780399,0.588,2646.8,2646.7,2.02293269]
[1739192781399,0.6121,2647.1,2646.7,2.02293269]
[1739192784298,0.6121,2647.1,2646.5,0.6078]
[1739192786105,3.8199,2647.1,2646.5,0.6078]
[1739192786900,3.8199,2647.1,2646.7,2.02293269]
[1739192787103,0.6121,2647.1,2646.7,2.02293269]
[1739192787801,3.8199,2647.1,2646.5,0.6078]
[1739192788407,0.75546,2647.0,2646.5,0.6078]
[1739192788708,3.8199,2647.1,2646.5,0.6078]
[1739192791101,4.1988,2647.1,2646.5,0.6078]
[1739192794308,3.8199,2647.1,2646.7,2.02293269]
[1739192795009,3.8199,2647.1,2646.8,40.8]
[1739192795809,3.8199,2647.1,2646.7,2.02293269]
[1739192796202,3.8199,2647.1,2646.7,42.82293269]
[1739192798015,3.8199,2647.1,2646.7,40.8]
[1739192799013,3.2078,2647.1,2647.0,2.02293269]
[1739192799213,0.591,2647.2,2647.0,2.02293269]
[1739192800214,3.8116,2647.5,2647.1,0.5708]
[1739192800618,3.8116,2647.5,2647.3,2.02293269]
[1739192802107,0.6038,2647.5,2647.3,2.02293269]
[1739192802411,0.6038,2647.5,2647.3,5.23073269]
[1739192802914,0.6038,2647.5,2647.3,2.02293269]
[1739192803415,0.6038,2647.5,2647.1,0.5708]
[1739192804917,0.6038,2647.5,2647.0,5.23640184]
[1739192805212,0.6035,2647.4,2647.0,5.23640184]
[1739192805919,0.6038,2647.5,2647.0,5.23640184]
[1739192806117,3.7731,2647.8,2647.3,5.23073269]
[1739192806319,3.7731,2647.8,2647.4,0.5688]
[1739192807621,3.2078,2647.5,2647.3,2.02293269]
[1739192807823,3.2078,2647.5,2647.0,0.00566915]
[1739192807824,0.5989,2647.4,2647.0,2.02860184]
[1739192811026,0.5569,2647.3,2647.0,2.02860184]
[1739192813133,3.2078,2647.2,2647.0,0.00566915]
[1739192815333,3.2078,2647.2,2647.0,2.02860184]
[1739192816530,0.75543,2647.1,2647.0,0.00566915]
[1739192816730,0.3781,2647.0,2646.5,0.5655]
[1739192816930,3.2078,2646.6,2646.5,0.5655]
[1739192817324,4.1438,2646.9,2646.5,0.5655]
[1739192819432,3.2078,2646.6,2646.4,0.00566915]
[1739192820037,3.7804,2646.6,2646.4,0.00566915]
[1739192820840,0.5726,2646.6,2646.4,0.00566915]
[1739192821833,3.7804,2646.6,2646.4,0.00566915]
[1739192822039,4.09439183,2646.5,2646.4,0.00566915]
[1739192822540,4.47249183,2646.5,2645.8,2.02293269]
[1739192822833,3.2078,2646.1,2645.8,2.02293269]
[1739192823837,0.3781,2646.2,2645.8,2.02293269]
[1739192824035,3.7631,2646.4,2645.8,2.02293269]
[1739192825441,3.7631,2646.4,2645.8,5.23073269]
[1739192825641,3.7631,2646.4,2646.1,2.02293269]
[1739192825836,0.5553,2646.4,2646.2,0.564]
[1739192826036,0.5726,2646.6,2646.2,1.7582]
[1739192826238,0.5742,2646.5,2646.2,1.172]
[1739192828339,0.5742,2646.5,2646.2,0.564]
[1739192829137,3.2078,2646.7,2646.2,0.564]
[1739192829138,3.2078,2646.7,2646.4,2.02293269]
[1739192829436,0.5722,2646.9,2646.5,0.5578]
[1739192829843,4.70057407,2646.9,2646.5,0.5578]
[1739192830236,3.21346915,2647.0,2646.7,2.02293269]
[1739192830442,0.00566915,2647.0,2646.8,1.1674]
[1739192832743,0.00566915,2647.0,2646.8,4.3752]
[1739192833041,0.5767,2647.3,2646.8,4.3752]
[1739192833042,3.2078,2648.0,2646.9,1.7]
[1739192833243,3.2078,2648.0,2647.5,2.02293269]
[1739192833445,3.2078,2648.0,2647.6,0.6071]
[1739192833645,3.2078,2648.0,2647.6,1.1758]
[1739192834746,3.8124,2648.0,2647.6,0.6071]
[1739192836142,3.2078,2647.7,2647.5,0.00566915]
[1739192836343,1.35268,2647.6,2647.5,0.00566915]
[1739192836649,0.5974,2647.6,2647.5,0.00566915]
[1739192836950,10.9619476,2647.6,2646.3,2.02293269]
[1739192837147,3.2078,2646.9,2646.4,0.6015]
[1739192837345,3.2078,2647.2,2646.6,2.02293269]
[1739192837944,3.2078,2647.2,2646.6,2.02860184]
[1739192838149,4.3498,2647.5,2646.6,2.02860184]
[1739192838348,3.7861,2647.5,2646.9,2.02293269]
[1739192838544,3.2078,2647.5,2647.2,2.02293269]
[1739192838849,0.5974,2647.6,2647.2,2.02293269]
[1739192839748,0.5974,2647.6,2647.0,1.7511]
[1739192840355,0.5883,2647.5,2647.0,1.7511]
[1739192840647,8.12941102,2647.5,2647.0,1.7511]
[1739192840852,8.12941102,2647.5,2647.0,1.1924]
[1739192841052,3.7961,2647.5,2647.0,1.1924]
[1739192842856,0.5974,2647.6,2647.2,2.02293269]
[1739192843054,0.5974,2647.6,2647.3,0.6005]
[1739192843845,3.2078,2647.8,2647.5,2.02293269]
[1739192844049,3.2078,2647.8,2647.6,1.1488]
[1739192845353,3.2078,2647.8,2647.7,40.8]
[1739192848461,0.5883,2647.9,2647.6,1.1488]
[1739192848858,0.5883,2647.9,2647.6,41.9488]
[1739192849660,0.5883,2647.9,2647.6,0.5822]
[1739192849957,0.5883,2647.9,2647.3,3.8083]
[1739192850265,3.2078,2647.6,2647.0,1.1641]
[1739192850453,0.594,2647.5,2647.0,1.1641]
[1739192850959,0.6105,2647.4,2647.0,1.1641]
[1739192857564,0.6105,2647.4,2647.0,0.5662]
[1739192857769,0.6105,2647.4,2646.8,41.358]
[1739192857960,0.5729,2647.3,2646.8,41.358]
[1739192858761,3.2078,2647.2,2646.8,40.8]
[1739192862069,4.07872344,2647.1,2646.7,0.5601]
[1739192862267,0.5763,2647.0,2646.7,0.5601]
[1739192862469,0.5763,2647.0,2646.7,41.3601]
[1739192862769,0.5959,2646.9,2646.7,41.3601]
[1739192863268,0.5959,2646.9,2646.7,0.5601]
[1739192863863,0.5959,2646.9,2646.6,46.03640184]
[1739192864060,0.5959,2646.9,2646.6,5.23640184]
[1739192866568,0.5763,2647.0,2646.6,5.23640184]
[1739192870976,0.5763,2647.0,2646.6,2.02860184]
[1739192872176,3.7841,2647.0,2646.6,2.02860184]
[1739192872475,4.32522784,2646.9,2646.6,0.00566915]
[1739192875971,3.7841,2647.0,2646.6,0.00566915]
[1739192876371,0.5763,2647.0,2646.6,0.00566915]
[1739192880375,3.2078,2646.8,2646.6,0.00566915]
[1739192880581,3.2078,2646.8,2646.0,2.02293269]
[1739192880582,1.33075,2646.7,2646.0,0.5564]
[1739192880782,3.2078,2646.5,2646.0,0.5564]
[1739192880981,0.5871,2646.4,2646.0,0.5564]
[1739192885998,3.2078,2646.2,2645.9,0.00566915]
[1739192886297,3.2078,2646.2,2645.4,2.58453269]
[1739192886298,5.16450182,2646.1,2645.4,2.58453269]
[1739192886505,3.2078,2645.9,2645.4,2.58453269]
[1739192886699,0.5955,2645.8,2645.4,43.38453269]
[1739192888406,0.5955,2645.8,2645.4,0.5616]
[1739192888597,3.2078,2645.6,2645.3,0.00566915]
[1739192888998,0.557,2645.5,2645.3,0.00566915]
[1739192890303,0.9351,2645.5,2645.3,0.00566915]
[1739192890802,0.557,2645.5,2645.3,0.00566915]
[1739192905018,3.97557219,2645.4,2645.3,0.00566915]
[1739192907319,0.557,2645.5,2645.3,0.00566915]
[1739192908519,3.2078,2645.6,2645.3,2.02860184]
[1739192908815,6.1218,2646.0,2645.4,1.1989]
[1739192909022,6.1218,2646.0,2645.4,1.7623]
[1739192909721,3.2078,2646.0,2645.4,1.7623]
[1739192913520,3.5859,2646.0,2645.4,1.7623]
[1739192914223,4.34165,2646.0,2645.4,1.7623]
[1739192914821,3.5859,2646.0,2645.4,1.7623]
[1739192915026,3.2078,2645.7,2645.4,1.7623]
[1739192915926,0.6029,2645.6,2645.4,1.1989]
[1739192916125,0.6029,2645.6,2645.4,0.6109]
[1739192916326,0.6029,2645.6,2645.3,0.00566915]
[1739192916327,1.2004,2645.6,2645.3,0.00566915]
[1739192916622,3.2078,2645.4,2645.3,0.00566915]
[1739192917720,3.2078,2645.4,2645.3,2.02860184]
[1739192917922,0.6029,2645.6,2645.3,2.02860184]
[1739192918723,0.6029,2645.6,2645.4,0.5906]
[1739192919626,3.2078,2645.5,2645.4,0.5906]
[1739192920622,3.2078,2645.8,2645.4,0.5906]
[1739192920825,0.5826,2646.0,2645.4,1.193]
[1739192922230,0.5975,2646.1,2645.6,2.02293269]
[1739192922426,0.5983,2646.3,2645.7,0.5726]
[1739192922632,0.5727,2646.4,2645.9,5.23073269]
[1739192922832,3.21346915,2646.5,2646.0,1.1457]
[1739192923526,0.00566915,2646.5,2646.2,2.02293269]
[1739192923834,0.00566915,2646.5,2646.3,0.5726]
[1739192924738,0.00566915,2646.5,2646.1,40.8]
[1739192924931,4.1775185,2646.4,2645.8,3.2078]
[1739192925129,3.7805,2646.3,2645.8,3.2078]
[1739192928934,3.2078,2646.0,2645.7,0.5726]
[1739192929138,1.163,2645.9,2645.5,1.1675]
[1739192929331,5.52128791,2645.9,2645.3,2.02860184]
[1739192930231,3.2078,2645.7,2645.3,0.00566915]
[1739192931328,3.2078,2645.7,2645.3,2.02860184]
[1739192931534,0.6028,2645.9,2645.6,2.02293269]
[1739192931727,3.2078,2646.1,2645.7,1.1707]
[1739192931927,3.2078,2646.1,2645.8,41.3633]
[1739192932435,0.575,2646.0,2645.8,41.3633]
[1739192932636,0.584,2645.9,2645.8,41.3633]
[1739192933636,0.584,2645.9,2645.4,0.5774]
[1739192933936,0.584,2645.9,2645.4,1.7501]
[1739192934138,0.584,2645.9,2645.5,40.8]
[1739192938440,3.2078,2646.4,2645.6,2.02293269]
[1739192938736,0.5802,2646.3,2645.6,2.02293269]
[1739192939644,0.5802,2646.3,2645.7,40.8]
[1739192940142,0.5802,2646.3,2645.8,0.5876]
[1739192940546,0.5802,2646.3,2645.9,1.1994]
[1739192941253,0.5802,2646.3,2645.9,3.22233269]
[1739192941451,0.00566915,2646.5,2645.9,3.22233269]
[1739192943851,0.00566915,2646.5,2645.9,1.1994]
[1739192944153,3.2078,2646.4,2645.9,1.1994]
[1739192944355,0.5951,2646.3,2645.9,1.1994]
[1739192944550,1.196,2646.3,2645.9,1.1994]
[1739192945147,1.196,2646.3,2645.8,3.7954]
[1739192945148,3.98402807,2646.2,2645.8,3.7954]
[1739192945346,0.6049,2646.1,2645.8,3.7954]
[1739192945754,3.98402807,2646.2,2645.8,3.7954]
[1739192945954,1.196,2646.3,2645.8,3.7954]
[1739192946354,4.35835105,2646.2,2645.8,3.7954]
[1739192947057,4.35835105,2646.2,2645.8,3.2078]
[1739192947556,1.196,2646.3,2645.8,3.2078]
[1739192948358,1.5741,2646.3,2645.8,3.2078]